fUSD/lending_fUSD_20241210
["ID","MTS","AMOUNT","RATE_DAILY","PERIOD"]
[344906239,1733865032294,-8822.691,9.684e-05,2]
[344906240,1733865032304,-150.0,9.686e-05,2]
[344906242,1733865032313,-150.0,9.69e-05,2]
[344906243,1733865032322,-150.0,9.693e-05,2]
[344906244,1733865032332,-150.0,9.693e-05,2]
[344906245,1733865032343,-150.0,9.695e-05,2]
[344906246,1733865032352,-1600.0,9.7e-05,3]
[344906247,1733865032361,-150.0,9.708e-05,2]
[344906248,1733865032370,-150.0,9.709e-05,2]
[344906249,1733865032382,-150.0,9.713e-05,2]
[344906250,1733865032393,-150.0,9.713e-05,2]
[344906251,1733865032402,-150.0,9.714e-05,2]
[344906252,1733865032411,-150.0,9.719e-05,2]
[344906253,1733865032420,-150.0,9.722e-05,2]
[344906254,1733865032432,-166.78,9.723e-05,2]
[344906255,1733865032442,-150.0,9.725e-05,2]
[344906256,1733865032451,-150.0,9.726e-05,2]
[344906257,1733865032461,-150.0,9.726e-05,2]
[344906258,1733865032470,-150.0,9.731e-05,2]
[344906259,1733865032480,-150.0,9.735e-05,2]
[344906260,1733865032489,-150.0,9.737e-05,2]
[344906261,1733865032499,-150.0,9.739e-05,2]
[344906262,1733865032509,-150.0,9.744e-05,2]
[344906263,1733865032519,-150.0,9.747e-05,2]
[344906264,1733865032529,-150.0,9.749e-05,2]
[344906265,1733865032539,-150.0,9.749e-05,2]
[344906266,1733865032549,-150.0,9.75e-05,2]
[344906267,1733865032559,-150.0,9.751e-05,2]
[344906268,1733865032568,-150.0,9.753e-05,2]
[344906269,1733865032578,-150.0,9.758e-05,2]
[344906270,1733865032587,-150.0,9.759e-05,2]
[344906271,1733865032597,-150.0,9.761e-05,2]
[344906272,1733865032606,-150.0,9.763e-05,2]
[344906273,1733865032615,-150.0,9.764e-05,2]
[344906274,1733865032624,-150.0,9.766e-05,2]
[344906275,1733865032634,-150.0,9.767e-05,2]
[344906276,1733865032644,-150.0,9.774e-05,2]
[344906277,1733865032653,-200.0,9.781e-05,2]
[344906278,1733865032662,-5000.0,9.784e-05,2]
[344906279,1733865032672,-150.0,9.785e-05,2]
[344906280,1733865032681,-150.0,9.786e-05,2]
[344906281,1733865032690,-150.0,9.788e-05,2]
[344906282,1733865032700,-150.0,9.79e-05,2]
[344906283,1733865032708,-150.0,9.79e-05,2]
[344906284,1733865032718,-150.0,9.79e-05,2]
[344906285,1733865032727,-974.91,9.79e-05,2]
[344906286,1733865032736,-974.91,9.79e-05,2]
[344906287,1733865032746,-150.0,9.798e-05,2]
[344906288,1733865032755,-150.0,9.799e-05,2]
[344906289,1733865032765,-1949.65,9.8e-05,2]
[344906290,1733865032774,-301.49,9.8e-05,2]
[344906291,1733865032783,-2400.0,9.8e-05,3]
[344906292,1733865032792,-150.0,9.802e-05,2]
[344906293,1733865032801,-150.0,9.804e-05,2]
[344906294,1733865032811,-150.0,9.805e-05,2]
[344906295,1733865032820,-150.0,9.806e-05,2]
[344906296,1733865032829,-150.0,9.808e-05,2]
[344906297,1733865032838,-500.0,9.808e-05,2]
[344906298,1733865032848,-1800.0,9.808e-05,2]
[344906299,1733865032857,-4600.0,9.808e-05,2]
[344906300,1733865032867,-150.0,9.809e-05,2]
[344906301,1733865032877,-150.0,9.811e-05,2]
[344906302,1733865032886,-494.36792585,9.813e-05,2]
[344906303,1733865032899,-150.0,9.817e-05,2]
[344906304,1733865032908,-150.0,9.822e-05,2]
[344906305,1733865032917,-150.0,9.832e-05,2]
[344906306,1733865032926,-150.0,9.837e-05,2]
[344906307,1733865032935,-150.0,9.84e-05,2]
[344906308,1733865032945,-150.0,9.842e-05,2]
[344906309,1733865032955,-150.0,9.843e-05,2]
[344906310,1733865032964,-150.0,9.844e-05,2]
[344906311,1733865032973,-150.0,9.854e-05,2]
[344906312,1733865032981,-150.0,9.854e-05,2]
[344906313,1733865032991,-150.0,9.855e-05,2]
[344906314,1733865033000,-1000.0,9.857e-05,2]
[344906315,1733865033010,-150.0,9.858e-05,2]
[344906316,1733865033019,-150.0,9.862e-05,2]
[344906317,1733865033029,-282.52773527,9.863e-05,2]
[344906318,1733865033038,-422.67549367,9.863e-05,2]
[344906319,1733865033048,-500.0,9.863e-05,2]
[344906320,1733865033058,-500.86423849,9.863e-05,2]
[344906321,1733865033069,-500.0,9.863e-05,2]
[344906322,1733865033079,-500.0,9.863e-05,2]
[344906323,1733865033088,-708.48,9.863e-05,2]
[344906324,1733865033098,-150.0,9.866e-05,2]
[344906325,1733865033108,-150.0,9.871e-05,2]
[344906326,1733865033118,-150.0,9.873e-05,2]
[344906327,1733865033127,-1692.5788129,9.874e-05,2]
[344906328,1733865033137,-150.0,9.874e-05,2]
[344906329,1733865033147,-150.0,9.875e-05,2]
[344906330,1733865033156,-150.0,9.876e-05,2]
[344906331,1733865033166,-150.0,9.876e-05,2]
[344906332,1733865033176,-150.0,9.877e-05,2]
[344906333,1733865033186,-300.0,9.882e-05,2]
[344906334,1733865033195,-300.0,9.882e-05,2]
[344906335,1733865033205,-300.0,9.882e-05,2]
[344906336,1733865033214,-300.0,9.882e-05,2]
[344906337,1733865033223,-300.0,9.882e-05,2]
[344906338,1733865033233,-300.0,9.882e-05,2]
[344906339,1733865033242,-300.0,9.882e-05,2]
[344906340,1733865033252,-300.0,9.882e-05,2]
[344906341,1733865033263,-300.0,9.882e-05,2]
[344906342,1733865033272,-300.0,9.882e-05,2]
[344906343,1733865033283,-300.0,9.882e-05,3]
[344906344,1733865033292,-300.0,9.882e-05,3]
[344906345,1733865033302,-300.0,9.882e-05,3]
[344906346,1733865033311,-300.0,9.882e-05,3]
[344906347,1733865033321,-300.0,9.882e-05,3]
[344906348,1733865033331,-300.0,9.882e-05,3]
[344906349,1733865033340,-300.0,9.882e-05,3]
[344906350,1733865033350,-300.0,9.882e-05,3]
[344906351,1733865033359,-300.0,9.882e-05,3]
[344906352,1733865033369,-300.0,9.882e-05,3]
[344906353,1733865033380,-1028.28055695,9.883e-05,3]
[344906354,1733865033394,-500.0,9.883e-05,2]
[344906355,1733865033404,-103440.05627867,9.884e-05,2]
[344906356,1733865033454,-150.0,9.767e-05,2]
[344906357,1733865033464,-359.22801043,9.884e-05,2]
[344906358,1733865033476,-1632.45000001,9.884e-05,2]
[344906359,1733865033520,-150.0,9.857e-05,2]
[344906360,1733865033529,-1000.0,9.884e-05,2]
[344906361,1733865033542,-3966.97785555,9.884e-05,2]
[344906362,1733865037904,-326.82220256,9.884e-05,2]
[344906363,1733865037916,-20814.75677674,9.884e-05,2]
[344906364,1733865037967,-6893.30034279,9.884e-05,2]
[344906365,1733865037979,-1293.96944553,9.884e-05,2]
[344906366,1733865038030,-1624.544763,9.884e-05,2]
[344906367,1733865038090,-1258.63643027,9.884e-05,2]
[344906368,1733865038166,-816.66,9.884e-05,2]
[344906369,1733865038179,-10985.55453406,9.884e-05,2]
[344906489,1733865039844,-1906.35,9.884e-05,2]
[344906490,1733865039855,-366.0366,9.884e-05,2]
[344906493,1733865039907,-4649.49997125,9.884e-05,2]
[344906510,1733865042904,-13271.52217943,9.884e-05,2]
[344906511,1733865042915,-1450.2507635,9.884e-05,2]
[344906512,1733865042925,-1801.87005,9.884e-05,2]
[344906514,1733865042937,-36649.36115,9.884e-05,2]
[344906515,1733865042966,-1132.28530185,9.884e-05,2]
[344906516,1733865042978,-474.42,9.884e-05,2]
[344906517,1733865043033,-24734.55000014,9.884e-05,2]
[344906518,1733865043045,-14646.60000002,9.884e-05,2]
[344906519,1733865043059,-12032.0,9.884e-05,2]
[344906520,1733865043071,-3042.216401,9.884e-05,2]
[344906521,1733865043083,-193873.91121443,9.884e-05,2]
[344906522,1733865043094,-314.98378072,9.884e-05,2]
[344906523,1733865043143,-36740.32610858,9.884e-05,2]
[344906525,1733865043155,-6613.06161279,9.884e-05,2]
[344906529,1733865043261,-964.04560178,9.884e-05,2]
[344906530,1733865043273,-3619.81305,9.884e-05,2]
[344906531,1733865043286,-5256.5,9.884e-05,2]
[344906532,1733865043299,-732.51134023,9.884e-05,2]
[344906533,1733865043317,-106584.999965,9.884e-05,2]
[344906534,1733865043329,-16187.61555494,9.884e-05,2]
[344906556,1733865045882,-19203.23786642,9.884e-05,2]
[344906558,1733865045945,-969.53089366,9.884e-05,2]
[344906559,1733865045957,-1292.50000904,9.884e-05,2]
[344906560,1733865046003,-362.16,9.884e-05,2]
[344906561,1733865046015,-649063.92067166,9.884e-05,2]
[344906562,1733865046027,-370.58734935,9.884e-05,2]
[344906563,1733865046039,-1264.76750391,9.884e-05,2]
[344906564,1733865046053,-2004.118052,9.884e-05,2]
[344906565,1733865046068,-5804.15155352,9.884e-05,2]
[344906566,1733865046121,-62647.36566979,9.884e-05,2]
[344906567,1733865046178,-15829.14341342,9.884e-05,2]
[344906571,1733865074653,225.11,8.438e-05,2]
[344906572,1733865074677,800.0,8.438e-05,2]
[344906573,1733865074701,800.0,8.438e-05,2]
[344906574,1733865074725,800.0,8.438e-05,2]
[344906575,1733865074750,800.0,8.438e-05,2]
[344906576,1733865074774,374.89,8.438e-05,2]
[344906577,1733865074928,425.11,8.438e-05,2]
[344906578,1733865074953,300.0,8.438e-05,2]
[344906579,1733865074986,774.89,8.438e-05,2]
[344906580,1733865089439,728.52,9.385e-05,2]
[344906581,1733865120964,500.0,8.438e-05,2]
[344906582,1733865141055,543.015,9.39e-05,2]
[344906583,1733865146591,150.0,0.00021,120]
[344906584,1733865150110,150.0,0.00021,120]
[344906585,1733865150984,150.0,0.00021,120]
[344906586,1733865151839,150.0,0.00021,120]
[344906587,1733865152731,150.0,0.00021,120]
[344906588,1733865157279,150.0,0.00021,120]
[344906589,1733865250633,29706.0,9.494e-05,2]
[344906590,1733865276843,250.0,9.126e-05,2]
[344906591,1733865299380,339.28,9.076e-05,2]
[344906592,1733865374606,250.0,9.068e-05,2]
[344906593,1733865704227,1000.0,8.766e-05,2]
[344906594,1733865718600,200.0,8.768e-05,2]
[344906595,1733865792285,520.621,9.39e-05,2]
[344906596,1733865826383,1500.0,8.766e-05,2]
[344906628,1733866194333,617.18,8.765e-05,2]
[344906634,1733866232168,-1844.235004,9.53e-05,2]
[344906635,1733866232178,-317.01,9.578e-05,2]
[344906636,1733866232188,-1052.0,9.6e-05,2]
[344906637,1733866232197,-150.0,9.612e-05,2]
[344906638,1733866232207,-150.0,9.614e-05,2]
[344906639,1733866232216,-150.0,9.621e-05,2]
[344906640,1733866232225,-4.954996,9.621e-05,2]
[344906641,1733866232239,-145.045004,9.621e-05,2]
[344906642,1733866232249,-150.0,9.624e-05,2]
[344906643,1733866232258,-150.0,9.625e-05,2]
[344906644,1733866232268,-150.0,9.631e-05,2]
[344906645,1733866232278,-150.0,9.633e-05,2]
[344906646,1733866232287,-321.2467505,9.633e-05,2]
[344906647,1733866232311,-561.6932495,9.633e-05,2]
[344906648,1733866232320,-150.0,9.634e-05,2]
[344906649,1733866232330,-150.0,9.634e-05,2]
[344906650,1733866232339,-150.0,9.637e-05,2]
[344906651,1733866232348,-150.0,9.638e-05,2]
[344906652,1733866232358,-150.0,9.64e-05,2]
[344906653,1733866232367,-150.0,9.64e-05,2]
[344906654,1733866232376,-150.0,9.645e-05,2]
[344906655,1733866232386,-150.0,9.648e-05,2]
[344906656,1733866232395,-150.0,9.652e-05,2]
[344906657,1733866232405,-150.0,9.656e-05,2]
[344906658,1733866232415,-150.0,9.66e-05,2]
[344906659,1733866232424,-974.91,9.66e-05,2]
[344906660,1733866232433,-150.0,9.666e-05,2]
[344906661,1733866232443,-150.0,9.667e-05,2]
[344906662,1733866232452,-150.0,9.67e-05,2]
[344906663,1733866232462,-150.0,9.67e-05,2]
[344906664,1733866232471,-150.0,9.676e-05,2]
[344906665,1733866232480,-150.0,9.677e-05,2]
[344906666,1733866232495,-150.0,9.677e-05,2]
[344906668,1733866232508,-150.0,9.678e-05,2]
[344906669,1733866232517,-150.0,9.682e-05,2]
[344906671,1733866232526,-150.0,9.686e-05,2]
[344906673,1733866232536,-150.0,9.687e-05,2]
[344906675,1733866232545,-150.0,9.688e-05,2]
[344906677,1733866232554,-150.0,9.688e-05,2]
[344906679,1733866232564,-150.0,9.694e-05,2]
[344906681,1733866232574,-150.0,9.697e-05,2]
[344906683,1733866232583,-150.0,9.7e-05,2]
[344906685,1733866232592,-900.0,9.7e-05,3]
[344906687,1733866232603,-150.0,9.701e-05,2]
[344906689,1733866232613,-150.0,9.705e-05,2]
[344906691,1733866232623,-150.0,9.709e-05,2]
[344906693,1733866232632,-150.0,9.717e-05,2]
[344906695,1733866232642,-150.0,9.718e-05,2]
[344906697,1733866232651,-150.0,9.721e-05,2]
[344906698,1733866232660,-150.0,9.725e-05,2]
[344906699,1733866232670,-150.0,9.726e-05,2]
[344906700,1733866232679,-150.0,9.727e-05,2]
[344906701,1733866232689,-150.0,9.727e-05,2]
[344906702,1733866232698,-150.0,9.728e-05,2]
[344906703,1733866232708,-150.0,9.729e-05,2]
[344906704,1733866232718,-150.0,9.73e-05,2]
[344906705,1733866232727,-150.0,9.731e-05,2]
[344906706,1733866232743,-150.0,9.732e-05,2]
[344906707,1733866232753,-150.0,9.732e-05,2]
[344906708,1733866232763,-150.0,9.736e-05,2]
[344906709,1733866232777,-150.0,9.737e-05,2]
[344906710,1733866232788,-150.0,9.74e-05,2]
[344906711,1733866232797,-150.0,9.751e-05,2]
[344906712,1733866232807,-150.0,9.751e-05,2]
[344906713,1733866232817,-150.0,9.755e-05,2]
[344906714,1733866232826,-150.0,9.757e-05,2]
[344906715,1733866232836,-150.0,9.758e-05,2]
[344906716,1733866232846,-150.0,9.76e-05,2]
[344906717,1733866232855,-150.0,9.768e-05,2]
[344906718,1733866232865,-150.0,9.771e-05,2]
[344906719,1733866232875,-150.0,9.774e-05,2]
[344906720,1733866232884,-150.0,9.778e-05,2]
[344906721,1733866232894,-150.0,9.783e-05,2]
[344906722,1733866232903,-540.7077,9.784e-05,2]
[344906723,1733866232913,-2833.6483,9.784e-05,2]
[344906724,1733866232922,-3925.85486047,9.784e-05,2]
[344906725,1733866232935,-10745.45768396,9.784e-05,2]
[344906726,1733866232946,-35673.39765557,9.784e-05,2]
[344906727,1733866232955,-12643.26734307,9.784e-05,2]
[344906728,1733866232966,-250.842823,9.784e-05,2]
[344906736,1733866238058,-150.0,9.651e-05,2]
[344906737,1733866238068,-150.0,9.659e-05,2]
[344906738,1733866238077,-1780.28216,9.784e-05,2]
[344906739,1733866238092,-4520.29767393,9.784e-05,2]
[344906740,1733866238102,-5000.0,9.784e-05,2]
[344906741,1733866238111,-150.0,9.784e-05,2]
[344906742,1733866238120,-150.0,9.788e-05,2]
[344906743,1733866238129,-150.0,9.792e-05,2]
[344906744,1733866238138,-150.0,9.792e-05,2]
[344906745,1733866238148,-150.0,9.793e-05,2]
[344906746,1733866238157,-150.0,9.794e-05,2]
[344906747,1733866238166,-150.0,9.797e-05,2]
[344906748,1733866238176,-1900.0,9.8e-05,3]
[344906749,1733866238185,-1191.0,9.8e-05,2]
[344906750,1733866238195,-150.0,9.807e-05,2]
[344906751,1733866238204,-3800.0,9.808e-05,2]
[344906752,1733866238213,-1500.0,9.808e-05,2]
[344906753,1733866238223,-150.0,9.809e-05,2]
[344906754,1733866238233,-150.0,9.811e-05,2]
[344906755,1733866238245,-150.0,9.812e-05,2]
[344906756,1733866238254,-150.0,9.813e-05,2]
[344906757,1733866238263,-150.0,9.817e-05,2]
[344906758,1733866238272,-150.0,9.824e-05,2]
[344906759,1733866238282,-150.0,9.83e-05,2]
[344906760,1733866238291,-150.0,9.83e-05,2]
[344906761,1733866238301,-150.0,9.838e-05,2]
[344906762,1733866238310,-150.0,9.839e-05,2]
[344906763,1733866238320,-150.0,9.84e-05,2]
[344906764,1733866238329,-150.0,9.84e-05,2]
[344906765,1733866238339,-150.0,9.842e-05,2]
[344906766,1733866238348,-150.0,9.842e-05,2]
[344906767,1733866238358,-150.0,9.848e-05,2]
[344906768,1733866238368,-150.0,9.851e-05,2]
[344906769,1733866238377,-150.0,9.852e-05,2]
[344906770,1733866238387,-150.0,9.853e-05,2]
[344906771,1733866238396,-150.0,9.856e-05,2]
[344906772,1733866238406,-150.0,9.856e-05,2]
[344906773,1733866238415,-150.0,9.86e-05,2]
[344906774,1733866238424,-617.18,9.861e-05,2]
[344906775,1733866238434,-1000.0,9.862e-05,2]
[344906776,1733866238443,-150.0,9.862e-05,2]
[344906778,1733866238452,-339.76301563,9.863e-05,2]
[344906780,1733866238461,-632.82127359,9.863e-05,2]
[344906782,1733866238470,-500.0,9.863e-05,2]
[344906784,1733866238479,-150.0,9.863e-05,2]
[344906786,1733866238491,-2549.0,9.863e-05,2]
[344906788,1733866238500,-566.78,9.863e-05,2]
[344906790,1733866238509,-1046.0,9.863e-05,2]
[344906792,1733866238519,-150.0,9.868e-05,2]
[344906794,1733866238528,-150.0,9.869e-05,2]
[344906796,1733866238537,-3670.4281645,9.873e-05,2]
[344906798,1733866238547,-2099.9994068,9.873e-05,2]
[344906800,1733866238556,-2707.27736356,9.88e-05,2]
[344906802,1733866238565,-1813.8660011,9.88e-05,2]
[344906804,1733866238575,-150.0,9.88e-05,2]
[344906806,1733866238584,-150.0,9.88e-05,2]
[344906808,1733866238594,-8539.6656111,9.88e-05,2]
[344906810,1733866238607,-5958.34397624,9.88e-05,2]
[344906812,1733866238616,-300.0,9.882e-05,2]
[344906814,1733866238626,-300.0,9.882e-05,2]
[344906816,1733866238635,-300.0,9.882e-05,2]
[344906818,1733866238645,-300.0,9.882e-05,2]
[344906820,1733866238654,-300.0,9.882e-05,2]
[344906822,1733866238664,-300.0,9.882e-05,2]
[344906824,1733866238674,-300.0,9.882e-05,2]
[344906826,1733866238683,-300.0,9.882e-05,2]
[344906828,1733866238692,-300.0,9.882e-05,2]
[344906831,1733866238702,-300.0,9.882e-05,2]
[344906834,1733866238712,-300.0,9.882e-05,3]
[344906837,1733866238721,-300.0,9.882e-05,3]
[344906840,1733866238731,-300.0,9.882e-05,3]
[344906842,1733866238746,-300.0,9.882e-05,3]
[344906844,1733866238760,-300.0,9.882e-05,3]
[344906846,1733866238769,-300.0,9.882e-05,3]
[344906848,1733866238779,-300.0,9.882e-05,3]
[344906850,1733866238788,-300.0,9.882e-05,3]
[344906852,1733866238798,-300.0,9.882e-05,3]
[344906854,1733866238808,-300.0,9.882e-05,3]
[344906856,1733866238817,-150.0,9.882e-05,2]
[344906858,1733866238826,-500.0,9.883e-05,2]
[344906860,1733866238836,-500.0,9.883e-05,2]
[344906862,1733866238847,-276.09966942,9.883e-05,2]
[344906864,1733866238856,-35838.61928606,9.884e-05,2]
[344906866,1733866238867,-4967.94346932,9.884e-05,2]
[344906868,1733866238878,-4803.90165,9.884e-05,2]
[344906870,1733866238889,-15216.4823049,9.884e-05,2]
[344906872,1733866238899,-21014.22485927,9.884e-05,2]
[344906878,1733866238942,-301.289,9.884e-05,2]
[344906880,1733866238953,-5290.90688747,9.884e-05,2]
[344906882,1733866238964,-2027.15,9.884e-05,2]
[344906886,1733866238994,-809.284128,9.884e-05,2]
[344906889,1733866239005,-424.999955,9.884e-05,2]
[344906892,1733866239027,-4754.57703034,9.884e-05,2]
[344907004,1733866240080,-1723.4318912,9.884e-05,2]
[344907006,1733866240092,-1941.76424485,9.884e-05,2]
[344907008,1733866240103,-550.17854034,9.884e-05,2]
[344907024,1733866240244,-25475.38923914,9.884e-05,2]
[344907335,1733866243315,-16053.6942823,9.884e-05,2]
[344907339,1733866243391,-10996.2271762,9.884e-05,2]
[344907340,1733866243402,-1718.75322102,9.884e-05,2]
[344907341,1733866243469,-521.77205309,9.884e-05,2]
[344907342,1733866243611,-88258.053696,9.884e-05,2]
[344907350,1733866246408,-2913.75938894,9.578e-05,2]
[344907351,1733866246418,-250.0,9.586e-05,2]
[344907352,1733866246427,-20181.54201106,9.884e-05,2]
[344907353,1733866246452,-918.73379999,9.884e-05,2]
[344907354,1733866246498,-27065.169294,9.884e-05,2]
[344907355,1733866246509,-1630.44,9.884e-05,2]
[344907356,1733866246520,-366993.09701992,9.884e-05,2]
[344907359,1733866252427,1000.0,0.00021,120]
[344907360,1733866294645,3200.0,8.438e-05,2]
[344907361,1733866295497,1200.0,8.438e-05,2]
[344907362,1733866311031,509.998,9.39e-05,2]
[344907363,1733866314467,150.0,0.00021,120]
[344907364,1733866316164,150.0,0.00021,120]
[344907365,1733866326816,11068.52,9.437e-05,2]
[344907366,1733866356768,3083.7318,9.43e-05,2]
[344907367,1733866365750,250.0,9.344e-05,2]
[344907370,1733866469448,954.54,8.219e-05,2]
[344907380,1733866628546,1000.0,9.18e-05,2]
[344907382,1733866815298,200.0,9.144e-05,2]
[344907385,1733866868858,7857.47,9.144e-05,2]
[344907386,1733866983261,488.574,9.39e-05,2]
[344907387,1733867033605,166.81,8.769e-05,2]
[344907388,1733867093408,829.69,8.768e-05,2]
[344907389,1733867231378,-663.0,0.00016658,30]
[344907500,1733867245586,-500.0,0.00016658,30]
[344907564,1733867246989,-301.12,0.00016658,30]
[344907588,1733867277065,-150.0,0.00015,15]
[344907589,1733867278360,6000.0,9.501e-05,2]
[344907595,1733867359531,250.0,8.766e-05,2]
[344907599,1733867370736,486.563,9.39e-05,2]
[344907600,1733867371753,945.77,8.219e-05,2]
[344907601,1733867377870,250.0,8.765e-05,2]
[344907609,1733867432393,-150.0,9.589e-05,2]
[344907610,1733867432402,-150.0,9.612e-05,2]
[344907611,1733867432411,-202.23,9.612e-05,2]
[344907612,1733867432421,-11.8392239,9.613e-05,2]
[344907613,1733867432432,-190.3907761,9.613e-05,2]
[344907614,1733867432442,-150.0,9.613e-05,2]
[344907615,1733867432451,-202.23,9.613e-05,2]
[344907616,1733867432460,-150.0,9.619e-05,2]
[344907617,1733867432469,-150.0,9.62e-05,2]
[344907618,1733867432478,-150.0,9.626e-05,2]
[344907619,1733867432488,-93.8490619,9.627e-05,2]
[344907620,1733867432500,-56.1509381,9.627e-05,2]
[344907621,1733867432526,-150.0,9.627e-05,2]
[344907622,1733867432535,-150.0,9.629e-05,2]
[344907623,1733867432545,-150.0,9.629e-05,2]
[344907624,1733867432554,-150.0,9.631e-05,2]
[344907625,1733867432564,-150.0,9.635e-05,2]
[344907626,1733867432573,-150.0,9.638e-05,2]
[344907627,1733867432583,-150.0,9.638e-05,2]
[344907628,1733867432592,-150.0,9.64e-05,2]
[344907629,1733867432602,-200.0,9.642e-05,2]
[344907630,1733867432612,-150.0,9.642e-05,2]
[344907631,1733867432621,-150.0,9.646e-05,2]
[344907632,1733867432631,-150.0,9.651e-05,2]
[344907633,1733867432641,-150.0,9.653e-05,2]
[344907635,1733867432650,-150.0,9.654e-05,2]
[344907637,1733867432659,-150.0,9.657e-05,2]
[344907639,1733867432669,-223.27,9.66e-05,2]
[344907641,1733867432678,-870.48,9.66e-05,2]
[344907643,1733867432688,-435.39,9.66e-05,2]
[344907645,1733867432697,-150.0,9.669e-05,2]
[344907646,1733867432707,-581.4090619,9.67e-05,2]
[344907648,1733867432744,-187.1009381,9.67e-05,2]
[344907650,1733867432754,-150.0,9.672e-05,2]
[344907652,1733867432763,-150.0,9.679e-05,2]
[344907654,1733867432774,-150.0,9.679e-05,2]
[344907656,1733867432782,-150.0,9.683e-05,2]
[344907658,1733867432792,-150.0,9.685e-05,2]
[344907660,1733867432802,-150.0,9.686e-05,2]
[344907662,1733867432811,-150.0,9.686e-05,2]
[344907664,1733867432821,-150.0,9.691e-05,2]
[344907666,1733867432830,-150.0,9.692e-05,2]
[344907668,1733867432839,-150.0,9.692e-05,2]
[344907670,1733867432849,-150.0,9.697e-05,2]
[344907672,1733867432858,-150.0,9.699e-05,2]
[344907674,1733867432868,-800.0,9.7e-05,3]
[344907676,1733867432877,-150.0,9.701e-05,2]
[344907678,1733867432887,-150.0,9.704e-05,2]
[344907680,1733867432896,-150.0,9.704e-05,2]
[344907681,1733867432905,-150.0,9.712e-05,2]
[344907683,1733867432914,-150.0,9.715e-05,2]
[344907686,1733867432923,-150.0,9.716e-05,2]
[344907690,1733867432932,-150.0,9.716e-05,2]
[344907692,1733867432942,-150.0,9.717e-05,2]
[344907695,1733867432952,-150.0,9.725e-05,2]
[344907698,1733867432962,-150.0,9.729e-05,2]
[344907701,1733867432972,-150.0,9.73e-05,2]
[344907705,1733867432982,-150.0,9.732e-05,2]
[344907708,1733867432991,-150.0,9.735e-05,2]
[344907710,1733867433002,-150.0,9.743e-05,2]
[344907714,1733867433020,-150.0,9.743e-05,2]
[344907716,1733867433036,-150.0,9.744e-05,2]
[344907719,1733867433047,-150.0,9.746e-05,2]
[344907723,1733867433057,-150.0,9.746e-05,2]
[344907726,1733867433067,-150.0,9.746e-05,2]
[344907730,1733867433077,-150.0,9.748e-05,2]
[344907733,1733867433087,-150.0,9.75e-05,2]
[344907736,1733867433097,-150.0,9.751e-05,2]
[344907738,1733867433111,-2173.0,9.753e-05,2]
[344907742,1733867433122,-150.0,9.759e-05,2]
[344907745,1733867433132,-150.0,9.76e-05,2]
[344907748,1733867433143,-150.0,9.76e-05,2]
[344907751,1733867433154,-150.0,9.764e-05,2]
[344907753,1733867433165,-150.0,9.771e-05,2]
[344907756,1733867433176,-150.0,9.776e-05,2]
[344907759,1733867433186,-150.0,9.776e-05,2]
[344907762,1733867433196,-150.0,9.776e-05,2]
[344907764,1733867433205,-858.9153,9.784e-05,2]
[344907767,1733867433215,-509.005,9.784e-05,2]
[344907770,1733867433224,-3099.0647,9.784e-05,2]
[344907773,1733867433234,-4019.0,9.784e-05,2]
[344907776,1733867433244,-5000.0,9.784e-05,2]
[344907778,1733867433264,-150.0,9.786e-05,2]
[344907780,1733867433275,-150.0,9.789e-05,2]
[344907782,1733867433285,-150.0,9.792e-05,2]
[344907784,1733867433294,-150.0,9.793e-05,2]
[344907786,1733867433304,-150.0,9.796e-05,2]
[344907788,1733867433313,-150.0,9.798e-05,2]
[344907790,1733867433323,-150.0,9.799e-05,2]
[344907792,1733867433332,-1600.0,9.8e-05,3]
[344907794,1733867433342,-150.0,9.801e-05,2]
[344907796,1733867433352,-150.0,9.803e-05,2]
[344907799,1733867433362,-150.0,9.804e-05,2]
[344907802,1733867433373,-150.0,9.805e-05,2]
[344907805,1733867433383,-150.0,9.806e-05,2]